fUSD/lending_fUSD_20260205
["ID","MTS","AMOUNT","RATE_DAILY","PERIOD"]
[404602595,1770325837454,-3500.0,0.00017888,2]
[404602596,1770325837463,-93808.26586034,0.000179,2]
[404602597,1770325837473,-250.0,0.0001797,2]
[404602598,1770325837482,-500.0,0.00017973,2]
[404602600,1770325837492,-500.44607621,0.00017973,2]
[404602601,1770325837500,-500.0,0.00017973,2]
[404602602,1770325837510,-161.54576163,0.00017973,2]
[404602603,1770325837519,-559.98909433,0.00017973,2]
[404602604,1770325837528,-163.55122157,0.00017973,2]
[404602605,1770325837538,-349.39414213,0.00017973,2]
[404602606,1770325837547,-500.0,0.00017973,2]
[404602607,1770325837561,-522.59811931,0.00017973,2]
[404602608,1770325837570,-500.0,0.00017973,2]
[404602609,1770325837580,-150.38423359,0.00017973,2]
[404602610,1770325837589,-500.0,0.00017973,2]
[404602611,1770325837599,-500.0,0.00017973,2]
[404602613,1770325837609,-500.58510869,0.00017973,2]
[404602615,1770325837619,-500.0,0.00017973,2]
[404602616,1770325837629,-160.70065711,0.00017973,2]
[404602617,1770325837640,-340.2758572,0.00017973,2]
[404602618,1770325837649,-460.53268393,0.00017973,2]
[404602619,1770325837659,-513.23435765,0.00017973,2]
[404602620,1770325837669,-500.0,0.00017973,2]
[404602621,1770325837679,-500.0,0.00017973,2]
[404602622,1770325837689,-500.0,0.00017973,2]
[404602623,1770325837698,-260.20893212,0.00017973,2]
[404602624,1770325837708,-500.69188757,0.00017973,2]
[404602625,1770325837718,-500.0,0.00017973,2]
[404602626,1770325837727,-500.0,0.00017973,2]
[404602627,1770325837737,-500.0,0.00017973,2]
[404602628,1770325837747,-500.0,0.00017973,2]
[404602629,1770325837756,-185.68585413,0.00017973,2]
[404602630,1770325837765,-500.0,0.00017973,2]
[404602631,1770325837775,-500.0,0.00017973,2]
[404602632,1770325837785,-500.0,0.00017973,2]
[404602633,1770325837794,-550.45996399,0.00017973,2]
[404602634,1770325837804,-500.0,0.00017973,2]
[404602635,1770325837819,-168.1097745,0.00017973,2]
[404602636,1770325837828,-486.51774098,0.00017973,2]
[404602637,1770325837837,-500.0,0.00017973,2]
[404602638,1770325837847,-500.0,0.00017973,2]
[404602639,1770325837855,-500.0,0.00017973,2]
[404602640,1770325837865,-593.90953649,0.00017973,2]
[404602641,1770325837874,-500.61521693,0.00017973,2]
[404602642,1770325837883,-565.51720141,0.00017973,2]
[404602643,1770325837892,-558.83569712,0.00017973,2]
[404602644,1770325837902,-500.0,0.00017973,2]
[404602645,1770325837911,-500.0,0.00017973,2]
[404602646,1770325837921,-500.0,0.00017973,2]
[404602647,1770325837931,-500.0,0.00017973,2]
[404602648,1770325837941,-500.0,0.00017973,2]
[404602649,1770325837951,-500.0,0.00017973,2]
[404602650,1770325837960,-500.0,0.00017973,2]
[404602651,1770325837970,-507.0,0.00018,2]
[404602652,1770325837979,-155.0,0.00018081,2]
[404602653,1770325837989,-500.0,0.00018134,2]
[404602654,1770325837998,-200.0,0.00018134,2]
[404602655,1770325838007,-210.8410705,0.00018134,2]
[404602656,1770325838016,-508.13334215,0.00018142,2]
[404602657,1770325838026,-4000.0,0.00018436,2]
[404602658,1770325838036,-7988.09293068,0.00018465,2]
[404602659,1770325838046,-12928.16673441,0.00018471,2]
[404602660,1770325838055,-3292.0,0.000185,2]
[404602661,1770325838071,-930.53,0.0001852,2]
[404602662,1770325838081,-829.94,0.0001852,2]
[404602663,1770325838090,-500.0,0.0001852,2]
[404602664,1770325838101,-585.98,0.0001852,2]
[404602665,1770325838111,-500.0,0.0001852,2]
[404602666,1770325838121,-598.28836626,0.0001852,2]
[404602667,1770325838130,-885.56,0.0001852,2]
[404602668,1770325838140,-505.3656764,0.00018521,2]
[404602669,1770325838150,-1000.0,0.00018521,2]
[404602670,1770325838160,-1000.0,0.00018521,2]
[404602671,1770325838170,-1001.09816726,0.00018521,2]
[404602672,1770325838180,-1000.0,0.00018521,2]
[404602673,1770325838190,-1000.0,0.00018521,2]
[404602674,1770325838200,-1000.0,0.00018521,2]
[404602675,1770325838210,-1000.0,0.00018521,2]
[404602677,1770325838224,-501.07018625,0.00018521,2]
[404602679,1770325838244,-1000.0,0.00018521,2]
[404602681,1770325838265,-1000.0,0.00018521,2]
[404602683,1770325838281,-1000.0,0.00018521,2]
[404602685,1770325838292,-1000.0,0.00018521,2]
[404602687,1770325838313,-1000.0,0.00018521,2]
[404602689,1770325838328,-500.74996921,0.00018521,2]
[404602691,1770325838338,-501.21553048,0.00018521,2]
[404602693,1770325838348,-1000.0,0.00018521,2]
[404602695,1770325838357,-1000.0,0.00018521,2]
[404602697,1770325838367,-1000.0,0.00018521,2]
[404602699,1770325838376,-1000.0,0.00018521,2]
[404602701,1770325838386,-1000.0,0.00018521,2]
[404602703,1770325838396,-1000.0,0.00018521,2]
[404602705,1770325838406,-1000.0,0.00018521,2]
[404602707,1770325838416,-1000.0,0.00018521,2]
[404602708,1770325838426,-1000.0,0.00018521,2]
[404602710,1770325838436,-502.12567003,0.00018521,2]
[404602712,1770325838446,-1000.0,0.00018521,2]
[404602714,1770325838456,-392.10693279,0.00018521,2]
[404602716,1770325838467,-500.0,0.00018556,2]
[404602718,1770325838477,-500.0,0.00018556,2]
[404602720,1770325838488,-500.0,0.00018556,2]
[404602722,1770325838497,-500.0,0.00018556,2]
[404602724,1770325838507,-500.0,0.00018556,2]
[404602726,1770325838517,-2222.4645425,0.0001864,2]
[404602728,1770325838527,-173.89,0.00018645,2]
[404602730,1770325838536,-500.0,0.00018682,2]
[404602732,1770325838546,-200.0,0.00018682,2]
[404602734,1770325838556,-150.0,0.00018688,2]
[404602736,1770325838570,-4430.25,0.00018723,2]
[404602738,1770325838580,-500.0,0.00018878,2]
[404602740,1770325838590,-500.0,0.00018878,2]
[404602742,1770325838601,-500.0,0.00018878,2]
[404602745,1770325838612,-500.0,0.00018878,2]
[404602746,1770325838622,-500.0,0.00018878,2]
[404602749,1770325838633,-18517.5144023,0.00018888,2]
[404602750,1770325838643,-1046.8548043,0.00018984,2]
[404602753,1770325838654,-1252.0,0.00019058,2]
[404602755,1770325838664,-24099.1528596,0.00019068,2]
[404602757,1770325838678,-631.42408239,0.00019068,2]
[404602759,1770325838688,-501.14950121,0.00019068,2]
[404602761,1770325838698,-1500.0,0.00019068,2]
[404602763,1770325838708,-1181.56918098,0.00019068,2]
[404602765,1770325838718,-1500.0,0.00019068,2]
[404602767,1770325838728,-501.24999677,0.00019068,2]
[404602769,1770325838738,-501.01495544,0.00019068,2]
[404602771,1770325838747,-1510.89137022,0.00019068,2]
[404602773,1770325838757,-525.83341626,0.00019068,2]
[404602775,1770325838767,-1500.0,0.00019068,2]
[404602777,1770325838777,-386.62164618,0.00019068,2]
[404602779,1770325838786,-1500.0,0.00019068,2]
[404602781,1770325838796,-369.98194845,0.00019068,2]
[404602783,1770325838807,-504.40745995,0.00019068,2]
[404602785,1770325838819,-1137.40575138,0.00019068,2]
[404602787,1770325838829,-1505.8521348,0.00019068,2]
[404602789,1770325838839,-1003.34257048,0.00019068,2]
[404602791,1770325838850,-1500.0,0.00019068,2]
[404602793,1770325838860,-1500.0,0.00019068,2]
[404602795,1770325838870,-1503.93923178,0.00019068,2]
[404602797,1770325838879,-1500.0,0.00019068,2]
[404602799,1770325838889,-200.0,0.00019082,2]
[404602801,1770325838898,-180.90687264,0.00019164,2]
[404602803,1770325838908,-162.55,0.00019201,2]
[404602805,1770325838917,-500.0,0.0001923,2]
[404602807,1770325838927,-200.0,0.0001923,2]
[404602809,1770325838937,-495.8988693,0.00019336,2]
[404602811,1770325838947,-507.0,0.00019512,3]
[404602813,1770325838956,-152.01739561,0.00019525,2]
[404602815,1770325838966,-155.0,0.00019724,2]
[404602817,1770325838975,-500.0,0.00019776,2]
[404602819,1770325838985,-500.0,0.00019778,2]
[404602821,1770325838995,-200.0,0.00019778,2]
[404602823,1770325839004,-24442.8220232,0.00019806,2]
[404602825,1770325839014,-500.28724876,0.00019973,2]
[404602827,1770325839023,-173.89,0.00019977,2]
[404602829,1770325839033,-500.0,0.00019999,2]
[404602831,1770325839042,-500.0,0.00019999,2]
[404602833,1770325839051,-500.0,0.00019999,2]
[404602836,1770325839065,-500.0,0.00019999,2]
[404602837,1770325839078,-500.0,0.00019999,2]
[404602839,1770325839088,-5000.0,0.0002,2]
[404602842,1770325839098,-500.0,0.00020326,2]
[404602843,1770325839109,-200.0,0.00020326,2]
[404602846,1770325839119,-4609.0,0.0002035,2]
[404602847,1770325839129,-290.19,0.00020397,2]
[404602849,1770325839141,-21547.78,0.00020548,2]
[404602851,1770325839151,-1000.0,0.00020548,2]
[404602853,1770325839161,-2129.0,0.00020585,2]
[404602855,1770325839171,-7988.09293068,0.00020694,2]
[404602857,1770325839180,-12928.16673441,0.00020699,2]
[404602859,1770325839190,-500.0,0.00020701,2]
[404602861,1770325839200,-500.0,0.00020701,2]
[404602863,1770325839211,-500.0,0.00020701,2]
[404602865,1770325839221,-500.0,0.00020701,2]
[404602867,1770325839231,-500.0,0.00020701,2]
[404602869,1770325839242,-869.32,0.00020714,2]
[404602871,1770325839252,-1391.0,0.00020822,2]
[404602874,1770325839262,-500.0,0.00020874,2]
[404602876,1770325839276,-200.0,0.00020874,2]
[404602878,1770325839286,-869.32,0.00020988,2]
[404602880,1770325839296,-507.0,0.00021024,4]
[404602882,1770325839306,-500.0,0.00021039,2]
[404602884,1770325839319,-500.0,0.00021039,2]
[404602886,1770325839330,-500.0,0.00021039,2]
[404602888,1770325839340,-500.0,0.00021039,2]
[404602890,1770325839349,-500.0,0.00021039,2]
[404602892,1770325839359,-1000.0,0.00021096,2]
[404602894,1770325839370,-622.44,0.00021262,2]
[404602896,1770325839379,-500.0,0.00021288,2]
[404602898,1770325839388,-500.0,0.00021336,2]
[404602900,1770325839398,-500.0,0.00021336,2]
[404602902,1770325839408,-500.0,0.00021336,2]
[404602904,1770325839417,-500.0,0.00021336,2]
[404602906,1770325839427,-500.0,0.00021336,2]
[404602908,1770325839436,-6385.95,0.0002137,2]
[404602910,1770325839446,-1999.0,0.0002137,2]
[404602912,1770325839456,-500.0,0.00021422,2]
[404602914,1770325839465,-202.52521576,0.00021422,2]
[404602916,1770325839475,-562.97380227,0.00021453,2]
[404602918,1770325839485,-5377.247837,0.00021748,2]
[404602920,1770325839495,-1294.06,0.00021757,2]
[404602922,1770325839504,-5453.9307925,0.00021915,2]
[404602924,1770325839514,-5000.0,0.00021918,2]
[404602927,1770325839524,-800.0,0.00021918,4]
[404602929,1770325839533,-800.0,0.00021918,4]
[404602931,1770325839543,-800.0,0.00021918,4]
[404602933,1770325839552,-800.0,0.00021918,4]
[404602935,1770325839564,-800.0,0.00021918,4]
[404602937,1770325839574,-800.0,0.00021918,4]
[404602939,1770325839590,-800.0,0.00021918,4]
[404602941,1770325839607,-800.0,0.00021918,4]
[404602943,1770325839619,-324.26622127,0.00021918,2]
[404602945,1770325839631,-347.33172637,0.00021918,2]
[404602947,1770325839643,-500.0,0.00021943,2]
[404602949,1770325839653,-500.0,0.00021943,2]
[404602952,1770325839662,-500.0,0.00021943,2]
[404602955,1770325839672,-500.0,0.00021943,2]
[404602958,1770325839681,-500.0,0.00021943,2]
[404602960,1770325839691,-500.0,0.0002197,2]
[404602962,1770325839701,-500.0,0.00021999,2]
[404602964,1770325839712,-500.0,0.00021999,2]
[404602966,1770325839721,-500.0,0.00021999,2]
[404602968,1770325839732,-500.0,0.00021999,2]
[404602970,1770325839742,-500.0,0.00021999,2]
[404602972,1770325839752,-178.22,0.00022,7]
[404602974,1770325839762,-15668.85,0.00022,2]
[404602976,1770325839772,-3620.0,0.00022239,2]
[404602978,1770325839782,-162.55,0.00022298,2]
[404602980,1770325839791,-1199.826171,0.00022346,2]
[404602982,1770325839801,-6453.0,0.00022384,2]
[404602984,1770325839815,-1216.9364511,0.00022385,2]
[404602986,1770325839825,-173.17,0.00022479,2]
[404602988,1770325839835,-500.0,0.00022515,2]
[404602990,1770325839845,-507.0,0.00022537,6]
[404602992,1770325839855,-500.0,0.00022599,2]
[404602994,1770325839865,-500.0,0.00022599,2]
[404602996,1770325839875,-500.0,0.00022599,2]
[404602998,1770325839885,-500.0,0.00022599,2]
[404603000,1770325839895,-500.0,0.00022599,2]
[404603002,1770325839905,-174.61919141,0.00022657,2]
[404603004,1770325839915,-200.0,0.00022657,2]
[404603007,1770325839925,-721.12765535,0.00022657,2]
[404603009,1770325839934,-868.92858835,0.00022657,2]
[404603011,1770325839944,-209.40437684,0.00022657,2]
[404603012,1770325839954,-209.40437684,0.00022657,2]
[404603014,1770325839963,-2000.0,0.00022657,2]
[404603016,1770325839973,-2000.0,0.00022657,2]
[404603018,1770325839983,-1500.0,0.00022657,2]
[404603021,1770325839992,-160.0,0.00022657,2]
[404603023,1770325840002,-2000.0,0.00022657,2]
[404603025,1770325840011,-322.6107,0.00022657,2]
[404603027,1770325840021,-1000.0,0.00022657,2]
[404603029,1770325840030,-500.0,0.00022657,2]
[404603031,1770325840040,-209.40437684,0.00022657,2]
[404603033,1770325840049,-500.0,0.00022657,2]
[404603035,1770325840065,-500.0,0.00022657,2]
[404603037,1770325840078,-500.0,0.00022657,2]
[404603039,1770325840088,-248.97678456,0.00022657,2]
[404603041,1770325840097,-217.15233878,0.00022712,2]
[404603043,1770325840106,-225.18697532,0.00022767,2]
[404603045,1770325840118,-173.17,0.00022783,14]
[404603047,1770325840127,-233.51889341,0.00022822,2]
[404603049,1770325840137,-242.15909246,0.00022877,2]
[404603052,1770325840148,-4121.7,0.0002291,2]
[404603054,1770325840158,-7988.09293068,0.00022923,2]
[404603056,1770325840167,-12928.16673441,0.00022927,2]
[404603057,1770325840177,-251.11897888,0.00022932,2]
[404603060,1770325840187,-260.4103811,0.00022987,2]
[404603062,1770325840196,-500.0,0.00022999,2]
[404603064,1770325840206,-500.0,0.00022999,2]
[404603066,1770325840215,-278.49714718,0.00022999,2]
[404603068,1770325840225,-500.0,0.00022999,2]
[404603070,1770325840234,-500.0,0.00022999,2]
[404603072,1770325840243,-500.0,0.00022999,2]
[404603074,1770325840252,-500.0,0.00022999,2]
[404603075,1770325840262,-500.0,0.00022999,2]
[404603078,1770325840271,-500.0,0.00022999,2]
[404603079,1770325840280,-160.0,0.00023,2]
[404603081,1770325840289,-155.0,0.00023012,2]
[404603083,1770325840298,-270.0455652,0.00023042,2]
[404603085,1770325840311,-280.03725112,0.00023097,2]
[404603088,1770325840320,-677.37,0.00023131,2]
[404603089,1770325840330,-290.39862941,0.00023152,2]
[404603091,1770325840339,-181.08010149,0.00023205,2]
[404603094,1770325840349,-200.0,0.00023205,2]
[404603096,1770325840359,-217.15233878,0.00023205,2]
[404603098,1770325840370,-2000.0,0.00023205,2]
[404603100,1770325840380,-217.15233878,0.00023205,2]
[404603102,1770325840389,-301.1433787,0.00023207,2]
[404603104,1770325840399,-187.78006525,0.00023753,2]
[404603106,1770325840408,-200.0,0.00023753,2]
[404603108,1770325840418,-225.18697531,0.00023753,2]
[404603110,1770325840427,-2000.0,0.00023753,2]
[404603112,1770325840436,-225.18697531,0.00023753,2]
[404603114,1770325840446,-3481.0,0.00023901,2]
[404603116,1770325840455,-1335.0,0.00023901,2]
[404603118,1770325840465,-1411.0,0.00023907,2]
[404603120,1770325840474,-163.201,0.00023907,2]
[404603122,1770325840483,-1290.366,0.00023907,2]
[404603124,1770325840493,-917.0,0.00023907,2]
[404603126,1770325840502,-1205.0,0.00023907,2]
[404603127,1770325840511,-2446.0,0.00023907,2]
[404603128,1770325840521,-3254.0,0.00023907,2]
[404603129,1770325840531,-15668.85,0.00024,2]
[404603130,1770325840540,-450.0,0.00024018,2]
[404603131,1770325840551,-290.19,0.00024023,2]
[404603132,1770325840563,-334.5472959,0.00024026,2]
[404603149,1770325840756,-507.0,0.00024049,7]
[404603151,1770325840766,-180.90687264,0.00024121,2]
[404603153,1770325840775,-194.72792766,0.00024301,2]
[404603155,1770325840785,-213.00021975,0.00024301,2]
[404603157,1770325840794,-2000.0,0.00024301,2]
[404603158,1770325840803,-500.0,0.00024499,2]
[404603160,1770325840817,-500.0,0.00024499,2]
[404603163,1770325840836,-500.0,0.00024499,2]
[404603164,1770325840846,-500.0,0.00024499,2]
[404603166,1770325840856,-9035.0,0.00024623,2]
[404603168,1770325840867,-150.0,0.00024658,2]
[404603171,1770325840877,-201.93286099,0.00024849,2]
[404603173,1770325840887,-2000.0,0.00024849,2]
[404603175,1770325840897,-7988.09293068,0.00025153,2]
[404603177,1770325840906,-12928.16673441,0.00025156,2]
[404603178,1770325840915,-521.5526136,0.00025254,2]
[404603181,1770325840924,-500.0,0.00025389,2]
[404603182,1770325840934,-500.0,0.00025389,2]
[404603184,1770325840943,-500.0,0.00025389,2]
[404603186,1770325840952,-346.92554585,0.00025395,2]
[404603189,1770325840965,-747.8093786,0.00025396,2]
[404603191,1770325840974,-209.40437684,0.00025397,2]
[404603193,1770325840983,-507.0,0.00025561,9]
[404603195,1770325840992,-889.0,0.0002579,2]
[404603197,1770325841002,-217.15233878,0.00025945,2]
[404603199,1770325841011,-889.0,0.00025967,2]
[404603201,1770325841020,-168.0,0.00026045,2]
[404603203,1770325841029,-178.22,0.000261,7]
[404603205,1770325841038,-15668.85,0.000261,2]
[404603207,1770325841047,-270.91,0.00026129,2]
[404603209,1770325841056,-889.0,0.00026178,2]
[404603211,1770325841072,-889.0,0.00026215,2]
[404603212,1770325841081,-889.0,0.0002624,2]
[404603214,1770325841091,-889.0,0.00026253,2]
[404603216,1770325841100,-889.0,0.00026385,2]
[404603219,1770325841111,-500.0,0.00026399,2]
[404603220,1770325841120,-500.0,0.00026399,2]
[404603222,1770325841129,-500.0,0.00026399,2]
[404603224,1770325841139,-14870.0,0.00026418,2]
[404603226,1770325841151,-225.18697532,0.00026493,2]
[404603229,1770325841160,-889.0,0.00026532,2]
[404603230,1770325841175,-2000.0,0.000266,2]
[404603233,1770325841189,-181.98230272,0.00026683,2]
[404603235,1770325841207,-889.0,0.00026697,2]
[404603236,1770325841217,-889.0,0.00026739,2]
[404603239,1770325841232,-359.76179104,0.00026764,2]
[404603241,1770325841242,-889.0,0.00026816,2]
[404603243,1770325841255,-889.0,0.00026863,2]
[404603245,1770325841264,-1335.0,0.00026901,2]
[404603247,1770325841274,-1411.0,0.00026907,2]
[404603249,1770325841288,-1271.0,0.00026907,2]
[404603251,1770325841303,-917.0,0.00026907,2]
[404603253,1770325841317,-1205.0,0.00026907,2]
[404603255,1770325841327,-2446.0,0.00026907,2]
[404603257,1770325841337,-3254.0,0.00026907,2]
[404603259,1770325841346,-168.0,0.00026949,2]
[404603261,1770325841356,-233.51889341,0.00027041,2]
[404603263,1770325841366,-507.0,0.00027073,10]
[404603265,1770325841376,-480.0,0.00027085,2]
[404603267,1770325841385,-150.0,0.00027123,2]
[404603269,1770325841394,-150.0,0.00027369,2]
[404603271,1770325841403,-1087.61538462,0.0002737,2]
[404603273,1770325841412,-941.30769231,0.0002737,2]
[404603275,1770325841421,-7988.09293068,0.00027382,2]
[404603277,1770325841431,-12928.16673441,0.00027384,2]
[404603279,1770325841440,-500.0,0.00027397,120]
[404603281,1770325841450,-1446.56,0.00027397,2]
[404603282,1770325841459,-168.0,0.00027429,2]
[404603283,1770325841468,-891.0,0.0002745,7]
[404603284,1770325841477,-15668.85,0.000275,2]
[404603285,1770325841487,-242.15909246,0.00027589,2]
[404603286,1770325841496,-889.0,0.00027597,2]
[404603287,1770325841506,-889.0,0.00027648,2]
[404603288,1770325841515,-168.0,0.00027691,2]
[404603289,1770325841524,-178.22,0.000277,7]
[404603290,1770325841533,-889.0,0.00027874,2]
[404603291,1770325841543,-889.0,0.00027889,2]
[404603292,1770325841551,-500.0,0.00027999,120]
[404603293,1770325841563,-500.0,0.00027999,30]
[404603294,1770325841572,-373.07297731,0.00028133,2]
[404603295,1770325841581,-775.47832561,0.00028135,2]
[404603296,1770325841590,-251.11897888,0.00028137,2]
[404603297,1770325841599,-168.0,0.00028179,2]
[404603298,1770325841608,-891.0,0.00028199,2]
[404603299,1770325841618,-161.22,0.00028236,2]
[404603300,1770325841627,-500.0,0.00028329,2]
[404603301,1770325841636,-168.0,0.00028364,2]
[404603302,1770325841647,-889.0,0.00028377,7]
[404603303,1770325841661,-507.0,0.00028585,11]
[404603304,1770325841670,-260.4103811,0.00028685,2]
[404603305,1770325841679,-562.97380227,0.00028698,2]
[404603306,1770325841688,-161.22,0.00028824,2]
[404603307,1770325841697,-839.0,0.0002893,3]
[404603309,1770325841706,-2838.0,0.0002893,3]
[404603311,1770325841716,-914.20742019,0.00028982,2]
[404603313,1770325841725,-265.29165808,0.00028996,2]
[404603315,1770325841735,-254.41914612,0.00028996,2]
[404603316,1770325841745,-180.90687264,0.00029077,2]
[404603317,1770325841755,-270.0455652,0.00029233,2]
[404603318,1770325841764,-2838.0,0.0002925,3]
[404603319,1770325841774,-161.21010387,0.00029411,2]
[404603320,1770325841787,-386.87667747,0.00029502,2]
[404603321,1770325841796,-155.0,0.00029587,2]
[404603322,1770325841806,-2000.0,0.000296,2]
[404603323,1770325841818,-7988.09293068,0.00029611,2]
[404603324,1770325841828,-12928.16673441,0.00029612,2]
[404603325,1770325841837,-289.06446956,0.00029781,2]
[404603326,1770325841847,-150.0,0.00029836,2]
[404603327,1770325841858,-1335.0,0.00029901,2]
[404603328,1770325841867,-1410.0,0.00029907,2]
[404603329,1770325841876,-1271.0,0.00029907,2]
[404603330,1770325841885,-917.0,0.00029907,2]
[404603331,1770325841895,-1205.0,0.00029907,2]
[404603332,1770325841904,-2446.0,0.00029907,2]
[404603333,1770325841913,-3254.0,0.00029907,2]
[404603334,1770325841923,-347.30998978,0.00029999,120]
[404603335,1770325841932,-327.37462682,0.00029999,30]
[404603336,1770325841942,-364.85070949,0.0003,7]
[404603337,1770325841951,-364.85070949,0.0003,7]
[404603338,1770325841960,-150.0,0.0003,2]
[404603339,1770325841970,-160.0,0.0003,2]
[404603340,1770325841979,-507.0,0.00030098,13]
[404603341,1770325841988,-300.0,0.00030137,5]
[404603342,1770325841997,-2000.0,0.000303,2]
[404603343,1770325842006,-163.83,0.000303,30]
[404603344,1770325842015,-211.87,0.00030411,120]
[404603345,1770325842025,-178.22,0.000308,7]
[404603346,1770325842034,-401.19111454,0.00030871,2]
[404603347,1770325842043,-615.26005015,0.00030874,2]
[404603348,1770325842052,-1321.07979126,0.00030877,4]
[404603349,1770325842065,-600.0,0.00030959,5]
[404603350,1770325842078,-154.76,0.00031123,91]
[404603351,1770325842087,-507.0,0.0003161,14]
[404603352,1770325842097,-900.0,0.00031781,5]
[404603353,1770325842107,-7988.09293068,0.0003184,2]
[404603354,1770325842116,-12928.16673441,0.00031841,2]
[404603355,1770325842125,-416.03518578,0.0003224,2]
[404603356,1770325842135,-1200.0,0.00032603,5]
[404603357,1770325842145,-150.0,0.00032634,2]
[404603358,1770325842159,-1052.15420326,0.00032634,2]
[404603359,1770325842168,-150.0,0.00032634,2]
[404603360,1770325842177,-3213.12402993,0.00032634,2]
[404603361,1770325842186,-150.0,0.00032634,2]
[404603362,1770325842196,-746.74756021,0.00032634,2]
[404603363,1770325842206,-839.0,0.00032775,11]
[404603364,1770325842215,-150.0,0.00032819,2]
[404603365,1770325842223,-500.0,0.00032877,120]
[404603366,1770325842233,-558.11657679,0.00032877,5]
[404603367,1770325842242,-814.74,0.000329,2]
[404603368,1770325842251,-150.55,0.000329,14]
[404603369,1770325842260,-163.05,0.000329,14]
[404603370,1770325842269,-917.0,0.00032907,2]
[404603371,1770325842279,-519.717,0.00032907,2]
[404603372,1770325842288,-2446.0,0.00032907,2]
[404603373,1770325842297,-3254.0,0.00032907,2]
[404603374,1770325842314,-234.065379,0.00033,14]
[404603375,1770325842323,-541.464896,0.00033,8]
[404603376,1770325842332,-639.0009,0.00033,30]
[404603377,1770325842342,-507.0,0.00033122,16]
[404603378,1770325842352,-2000.0,0.000333,2]
[404603379,1770325842361,-1500.0,0.00033425,5]
[404603380,1770325842370,-200.0,0.000335,8]
[404603381,1770325842380,-431.42848765,0.00033609,2]
[404603382,1770325842390,-839.0,0.00033735,11]
[404603383,1770325842399,-1000.0,0.00034,2]
[404603384,1770325842408,-15668.85,0.00034,2]
[404603385,1770325842417,-180.90687264,0.00034033,2]
[404603386,1770325842426,-7988.09293068,0.00034069,2]
[404603387,1770325842436,-12928.16673441,0.00034069,2]
[404603388,1770325842446,-930.53,0.00034168,120]
[404603389,1770325842455,-930.53,0.00034168,120]
[404603390,1770325842464,-829.94,0.00034168,120]
[404603391,1770325842473,-829.94,0.00034168,120]
[404603392,1770325842482,-585.98,0.00034168,10]
[404603393,1770325842491,-585.98,0.00034168,10]
[404603394,1770325842506,-500.0,0.00034168,7]
[404603395,1770325842518,-500.0,0.00034168,7]
[404603397,1770325842527,-885.56,0.00034168,120]
[404603398,1770325842537,-885.56,0.00034168,120]
[404603399,1770325842547,-389099.3820107,0.00034169,2]
[404603400,1770325842556,-29687.71469519,0.00034169,2]
[404603401,1770325842571,-580.52489795,0.00034169,2]
[404603402,1770325842584,-178.22,0.000342,14]
[404603403,1770325842594,-163.05,0.000342,14]
[404603404,1770325842603,-1339.39360104,0.00034247,5]
[404603405,1770325842613,-4121.7,0.00034587,2]
[404603406,1770325842623,-507.0,0.00034634,17]
[404603407,1770325842632,-930.53,0.00034757,120]
[404603408,1770325842642,-930.53,0.00034757,120]
[404603409,1770325842653,-930.53,0.00034757,120]
[404603410,1770325842662,-930.53,0.00034757,120]
[404603411,1770325842672,-930.53,0.00034757,120]
[404603412,1770325842682,-930.53407779,0.00034757,120]
[404603413,1770325842692,-829.94,0.00034757,120]